fUST/lending_fUST_20250811
["ID","MTS","AMOUNT","RATE_DAILY","PERIOD"]
[378614988,1754926273781,-498.07,0.0002,2]
[378614989,1754926273791,-460.0,0.0002,2]
[378614990,1754926273801,-460.0,0.0002,2]
[378614991,1754926273810,-505.53,0.0002,2]
[378614992,1754926273820,-461.41050636,0.0002,2]
[378614993,1754926273829,-460.0,0.0002,2]
[378614994,1754926273839,-460.0,0.0002,2]
[378614995,1754926273849,-460.0,0.0002,2]
[378614996,1754926273858,-460.0,0.0002,2]
[378614997,1754926273868,-471.30188534,0.0002,2]
[378614998,1754926273878,-473.00100699,0.0002,2]
[378614999,1754926273888,-460.0,0.0002,2]
[378615000,1754926273898,-505.39,0.0002,2]
[378615001,1754926273907,-460.0,0.0002,2]
[378615002,1754926273917,-460.85,0.0002,2]
[378615003,1754926273930,-460.0,0.0002,2]
[378615004,1754926273939,-460.0,0.0002,2]
[378615005,1754926273949,-540.13,0.0002,2]
[378615006,1754926273958,-4285.13,0.0002,2]
[378615007,1754926273967,-609.54,0.0002,2]
[378615008,1754926273977,-460.0,0.0002,2]
[378615009,1754926273987,-460.0,0.0002,2]
[378615010,1754926273996,-744.63,0.0002,2]
[378615011,1754926274006,-460.0,0.0002,2]
[378615012,1754926274015,-1322.6,0.0002,2]
[378615013,1754926274024,-739.05,0.0002,2]
[378615014,1754926274033,-1433.92,0.0002,2]
[378615015,1754926274042,-460.0,0.0002,2]
[378615016,1754926274051,-460.0,0.0002,2]
[378615017,1754926274061,-582.76631405,0.0002,2]
[378615018,1754926274070,-460.0,0.0002,2]
[378615019,1754926274079,-460.0,0.0002,2]
[378615020,1754926274088,-460.0,0.0002,2]
[378615021,1754926274097,-460.0,0.0002,2]
[378615022,1754926274106,-1072.07,0.0002,2]
[378615023,1754926274115,-1754.63,0.0002,2]
[378615024,1754926274124,-460.0,0.0002,2]
[378615025,1754926274134,-460.0,0.0002,2]
[378615026,1754926274143,-224.25397933,0.0002,2]
[378615027,1754926274152,-460.0,0.0002,2]
[378615028,1754926274161,-201.685157,0.0002,2]
[378615029,1754926274171,-176.793221,0.0002,2]
[378615030,1754926274180,-201.685157,0.0002,2]
[378615031,1754926274190,-460.0,0.0002,2]
[378615032,1754926274199,-176.793221,0.0002,2]
[378615033,1754926274208,-790.35,0.0002,2]
[378615034,1754926274218,-580.59,0.0002,2]
[378615035,1754926274227,-460.0,0.0002,2]
[378615036,1754926274236,-460.0,0.0002,2]
[378615037,1754926274245,-460.0,0.0002,2]
[378615038,1754926274254,-2481.44,0.0002,2]
[378615039,1754926274263,-645.73,0.0002,2]
[378615040,1754926274272,-460.0,0.0002,2]
[378615041,1754926274281,-473.41930153,0.0002,2]
[378615042,1754926274290,-460.0,0.0002,2]
[378615043,1754926274299,-2176.37,0.0002,2]
[378615044,1754926274308,-861.86,0.0002,2]
[378615045,1754926274317,-463.20594433,0.0002,2]
[378615046,1754926274327,-460.0,0.0002,2]
[378615047,1754926274336,-460.0,0.0002,2]
[378615048,1754926274345,-750.87,0.0002,2]
[378615049,1754926274354,-460.0,0.0002,2]
[378615050,1754926274368,-151.0,0.0002,2]
[378615051,1754926274377,-460.0,0.0002,2]
[378615052,1754926274386,-460.0,0.0002,2]
[378615053,1754926274395,-554.89,0.0002,2]
[378615054,1754926274406,-460.0,0.0002,2]
[378615055,1754926274415,-460.0,0.0002,2]
[378615056,1754926274424,-460.0,0.0002,2]
[378615057,1754926274434,-460.0,0.0002,2]
[378615058,1754926274443,-158.55,0.0002,2]
[378615059,1754926274452,-1873.97,0.0002,2]
[378615060,1754926274462,-158.55,0.0002,2]
[378615061,1754926274471,-289.640783,0.0002,2]
[378615062,1754926274481,-900.0,0.0002,2]
[378615063,1754926274490,-460.0,0.0002,2]
[378615064,1754926274499,-2188.51,0.0002,2]
[378615065,1754926274509,-460.0,0.0002,2]
[378615066,1754926274518,-1719.87,0.0002,2]
[378615067,1754926274528,-460.0,0.0002,2]
[378615068,1754926274537,-460.0,0.0002,2]
[378615069,1754926274547,-478.39000734,0.0002,2]
[378615070,1754926274753,-975.94,0.0002,2]
[378615071,1754926274768,-696.4,0.0002,2]
[378615072,1754926274777,-460.0,0.0002,2]
[378615073,1754926274787,-1275.31,0.0002,2]
[378615074,1754926274796,-1049.12,0.0002,2]
[378615075,1754926274805,-464.2953037,0.0002,2]
[378615076,1754926274814,-928.04487948,0.0002,2]
[378615077,1754926274828,-1037.46512052,0.0002,2]
[378615078,1754926274837,-460.0,0.0002,2]
[378615079,1754926274847,-152.77125,0.0002,2]
[378615080,1754926274856,-460.0,0.0002,2]
[378615081,1754926274865,-540.81,0.0002,2]
[378615082,1754926274875,-460.0,0.0002,2]
[378615083,1754926274884,-2685.79,0.0002,2]
[378615084,1754926274894,-460.0,0.0002,2]
[378615085,1754926274903,-460.0,0.0002,2]
[378615086,1754926274914,-152.77125,0.0002,2]
[378615087,1754926274924,-460.0,0.0002,2]
[378615088,1754926274933,-460.0,0.0002,2]
[378615089,1754926274943,-4314.66,0.0002,2]
[378615090,1754926274951,-284.73238248,0.0002,2]
[378615091,1754926274963,-175.26761752,0.0002,2]
[378615092,1754926274972,-460.0,0.0002,2]
[378615093,1754926274982,-460.0,0.0002,2]
[378615094,1754926274993,-1393.46,0.0002,2]
[378615095,1754926275003,-460.0,0.0002,2]
[378615096,1754926275014,-460.0,0.0002,2]
[378615097,1754926275023,-460.0,0.0002,2]
[378615098,1754926275035,-521.16,0.0002,2]
[378615099,1754926275044,-460.0,0.0002,2]
[378615100,1754926275054,-5264.77,0.0002,2]
[378615101,1754926275064,-460.0,0.0002,2]
[378615102,1754926275074,-151.0,0.0002,2]
[378615103,1754926275084,-460.0,0.0002,2]
[378615104,1754926275093,-2126.14,0.0002,2]
[378615105,1754926275103,-460.0,0.0002,2]
[378615106,1754926275112,-568.57943513,0.0002,2]
[378615107,1754926275122,-733.42,0.0002,2]
[378615108,1754926275132,-600.43,0.0002,2]
[378615109,1754926275141,-460.0,0.0002,2]
[378615110,1754926275151,-460.0,0.0002,2]
[378615111,1754926275160,-763.24,0.0002,2]
[378615112,1754926275170,-460.0,0.0002,2]
[378615113,1754926275179,-460.0,0.0002,2]
[378615114,1754926275189,-460.0,0.0002,2]
[378615115,1754926275198,-460.0,0.0002,2]
[378615116,1754926275207,-853.65,0.0002,2]
[378615117,1754926275216,-460.0,0.0002,2]
[378615118,1754926275226,-1036.44,0.0002,2]
[378615119,1754926275235,-460.0,0.0002,2]
[378615120,1754926275245,-460.0,0.0002,2]
[378615121,1754926275254,-460.0,0.0002,2]
[378615122,1754926275264,-1199.53,0.0002,2]
[378615123,1754926275273,-460.0,0.0002,2]
[378615124,1754926275283,-1570.84,0.0002,2]
[378615125,1754926275292,-460.0,0.0002,2]
[378615126,1754926275301,-460.0,0.0002,2]
[378615127,1754926275310,-460.0,0.0002,2]
[378615128,1754926275320,-1236.41,0.0002,2]
[378615129,1754926275329,-3303.66,0.0002,2]
[378615130,1754926275338,-3958.02,0.0002,2]
[378615131,1754926275347,-460.0,0.0002,2]
[378615132,1754926275358,-1196.87,0.0002,2]
[378615133,1754926275371,-513.55,0.0002,2]
[378615134,1754926275381,-1069.45,0.0002,2]
[378615135,1754926275390,-1144.05,0.0002,2]
[378615136,1754926275399,-934.0,0.0002,2]
[378615137,1754926275409,-460.0,0.0002,2]
[378615138,1754926275419,-460.0,0.0002,2]
[378615139,1754926275428,-684.18,0.0002,2]
[378615140,1754926275438,-882.68,0.0002,2]
[378615141,1754926275448,-397.48446645,0.0002,2]
[378615142,1754926275458,-1413.35,0.0002,2]
[378615143,1754926275467,-460.0,0.0002,2]
[378615144,1754926275477,-460.0,0.0002,2]
[378615145,1754926275487,-2121.65,0.0002,2]
[378615146,1754926275497,-484.87,0.0002,2]
[378615147,1754926275506,-2760.61,0.0002,2]
[378615148,1754926275515,-460.0,0.0002,2]
[378615149,1754926275525,-1166.91,0.0002,2]
[378615150,1754926275534,-514.14950293,0.0002,2]
[378615151,1754926275544,-499.4,0.0002,2]
[378615152,1754926275554,-460.0,0.0002,2]
[378615153,1754926275564,-460.0,0.0002,2]
[378615154,1754926275573,-460.0,0.0002,2]
[378615155,1754926275583,-3594.99,0.0002,2]
[378615156,1754926275593,-460.0,0.0002,2]
[378615157,1754926275603,-813.5,0.0002,2]
[378615158,1754926275612,-465.83,0.0002,2]
[378615159,1754926275621,-820.33,0.0002,2]
[378615160,1754926275631,-1026.39,0.0002,2]
[378615161,1754926275640,-4000.0,0.0002,4]
[378615162,1754926275650,-460.0,0.0002,2]
[378615163,1754926275659,-460.0,0.0002,2]
[378615164,1754926275669,-460.0,0.0002,2]
[378615165,1754926275678,-574.14,0.0002,2]
[378615166,1754926275687,-460.0,0.0002,2]
[378615167,1754926275696,-460.0,0.0002,2]
[378615168,1754926275706,-1215.3,0.0002,2]
[378615169,1754926275715,-775.41,0.0002,2]
[378615170,1754926275725,-460.0,0.0002,2]
[378615171,1754926275737,-460.0,0.0002,2]
[378615172,1754926275746,-579.27,0.0002,2]
[378615173,1754926275756,-587.54,0.0002,2]
[378615174,1754926275766,-460.0,0.0002,2]
[378615175,1754926275775,-512.27,0.0002,2]
[378615176,1754926275785,-460.0,0.0002,2]
[378615177,1754926275794,-589.56,0.0002,2]
[378615178,1754926275804,-460.0,0.0002,2]
[378615179,1754926275813,-674.05,0.0002,2]
[378615180,1754926275822,-460.0,0.0002,2]
[378615181,1754926275831,-1041.24,0.0002,2]
[378615182,1754926275841,-460.0,0.0002,2]
[378615183,1754926275851,-460.0,0.0002,2]
[378615184,1754926275860,-767.46,0.0002,2]
[378615185,1754926275869,-460.0,0.0002,2]
[378615186,1754926275879,-728.62,0.0002,2]
[378615187,1754926275888,-8919.63830884,0.0002001,2]
[378615188,1754926276100,-151.0,0.00018641,2]
[378615189,1754926276109,-291.99659878,0.00019178,2]
[378615190,1754926276119,-10267.65721354,0.0002001,2]
[378615191,1754926276128,-151.0,0.0002001,2]
[378615192,1754926276137,-500.0,0.00020011,2]
[378615193,1754926276147,-1207.14,0.00020013,3]
[378615194,1754926276156,-603.56,0.00020013,3]
[378615195,1754926276165,-301.78,0.00020013,3]
[378615196,1754926276175,-562.97348677,0.00020021,2]
[378615197,1754926276184,-500.0,0.00020021,2]
[378615198,1754926276194,-500.0,0.00020021,2]
[378615199,1754926276203,-1113.81959935,0.00020021,2]
[378615200,1754926276213,-1000.0,0.00020021,2]
[378615201,1754926276222,-500.0,0.00020021,2]
[378615202,1754926276232,-1000.0,0.00020021,2]
[378615203,1754926276242,-1000.0,0.00020021,2]
[378615204,1754926276251,-1000.0,0.00020021,2]
[378615205,1754926276261,-1000.0,0.00020021,2]
[378615206,1754926276270,-1000.0,0.00020021,2]
[378615207,1754926276279,-1000.0,0.00020021,2]
[378615208,1754926276289,-1000.0,0.00020021,2]
[378615209,1754926276298,-1000.0,0.00020021,2]
[378615210,1754926276307,-1000.0,0.00020021,2]
[378615211,1754926276317,-1071.10111159,0.00020021,2]
[378615212,1754926276327,-1000.0,0.00020021,2]
[378615213,1754926276337,-1007.53751155,0.00020021,2]
[378615214,1754926276347,-650.2418856,0.00020021,2]
[378615215,1754926276357,-194.98735988,0.00020021,2]
[378615216,1754926276370,-501.17661902,0.00020021,2]
[378615217,1754926276379,-1000.0,0.00020021,2]
[378615218,1754926276389,-395.96830765,0.00020021,2]
[378615219,1754926276399,-1000.0,0.00020021,2]
[378615220,1754926276408,-1000.0,0.00020021,2]
[378615221,1754926276418,-542.60550928,0.00020021,2]
[378615222,1754926276428,-1000.0,0.00020021,2]
[378615223,1754926276439,-1000.0,0.00020021,2]
[378615224,1754926276449,-1000.0,0.00020021,2]
[378615225,1754926276458,-1000.0,0.00020021,2]
[378615226,1754926276467,-1000.0,0.00020021,2]
[378615227,1754926276477,-1000.0,0.00020021,2]
[378615228,1754926276488,-1000.0,0.00020021,2]
[378615229,1754926276497,-1000.0,0.00020021,2]
[378615230,1754926276507,-434.33606118,0.00020034,4]
[378615231,1754926276516,-515.0,0.00020108,2]
[378615232,1754926276527,-1579.0,0.00020154,2]
[378615233,1754926276536,-767.255558,0.00020187,2]
[378615234,1754926276546,-170.462403,0.00020268,2]
[378615235,1754926276555,-170.462403,0.00020268,2]
[378615236,1754926276565,-1000.0,0.00020268,2]
[378615237,1754926276575,-531.31961904,0.00020268,2]
[378615238,1754926276584,-972.24958223,0.00020268,2]
[378615239,1754926276594,-1500.0,0.00020268,2]
[378615240,1754926276604,-684.29083244,0.00020268,2]
[378615241,1754926276614,-1500.0,0.00020268,2]
[378615242,1754926276623,-500.0,0.00020268,2]
[378615243,1754926276633,-1500.0,0.00020268,2]
[378615244,1754926276642,-707.45011972,0.00020268,2]
[378615245,1754926276651,-1500.0,0.00020268,2]
[378615246,1754926276662,-500.0,0.00020268,2]
[378615247,1754926276673,-1500.0,0.00020268,2]
[378615248,1754926276682,-1500.0,0.00020268,2]
[378615249,1754926276692,-1500.0,0.00020268,2]
[378615250,1754926276703,-1500.0,0.00020268,2]
[378615251,1754926276712,-1500.0,0.00020268,2]
[378615252,1754926276722,-348.8156515,0.00020269,2]
[378615253,1754926276731,-200.0,0.00020269,2]
[378615254,1754926276742,-128191.08486683,0.0002027,5]
[378615255,1754926276763,-15937.67875,0.0002027,5]
[378615256,1754926278371,5539.61565586,0.00018541,2]
[378615257,1754926278397,10000.0,0.00018541,2]
[378615258,1754926278423,10000.0,0.00018541,2]
[378615259,1754926278454,10000.0,0.00018541,2]
[378615260,1754926278479,10000.0,0.00018541,2]
[378615261,1754926278698,10000.0,0.00018541,2]
[378615262,1754926278727,10000.0,0.00018541,2]
[378615263,1754926278755,10000.0,0.00018541,2]
[378615264,1754926278782,10000.0,0.00018541,2]
[378615265,1754926278808,10000.0,0.00018541,2]
[378615266,1754926278834,10000.0,0.00018541,2]
[378615267,1754926278860,10000.0,0.00018541,2]
[378615268,1754926278885,10000.0,0.00018541,2]
[378615269,1754926278912,10000.0,0.00018541,2]
[378615270,1754926278938,10000.0,0.00018541,2]
[378615271,1754926278967,10000.0,0.00018541,2]
[378615272,1754926278996,10000.0,0.00018541,2]
[378615273,1754926279025,10000.0,0.00018541,2]
[378615274,1754926279053,10000.0,0.00018541,2]
[378615275,1754926279079,10000.0,0.00018541,2]
[378615276,1754926279105,10000.0,0.00018541,2]
[378615277,1754926279132,10000.0,0.00018541,2]
[378615278,1754926279158,10000.0,0.00018541,2]
[378615279,1754926279184,10000.0,0.00018541,2]
[378615280,1754926279210,10000.0,0.00018541,2]
[378615281,1754926279237,10000.0,0.00018541,2]
[378615282,1754926279262,10000.0,0.00018541,2]
[378615283,1754926279287,10000.0,0.00018541,2]
[378615284,1754926279313,10000.0,0.00018541,2]
[378615285,1754926279338,10000.0,0.00018541,2]
[378615286,1754926279366,10000.0,0.00018541,2]
[378615287,1754926279391,10000.0,0.00018541,2]
[378615288,1754926279417,10000.0,0.00018541,2]
[378615289,1754926279443,10000.0,0.00018541,2]
[378615290,1754926279469,10000.0,0.00018541,2]
[378615291,1754926279497,10000.0,0.00018541,2]
[378615292,1754926279532,10000.0,0.00018541,2]
[378615293,1754926279558,4460.38434414,0.00018541,2]
[378615294,1754926283496,4897.28829638,0.0003,120]
[378615296,1754926293306,5000.0,0.00018603,2]
[378615298,1754926301393,539.61565586,0.00018603,2]
[378615299,1754926301419,4460.38434414,0.00018603,2]
[378615301,1754926310141,5000.0,0.00018603,2]
[378615302,1754926318159,539.61565586,0.00018603,2]
[378615303,1754926318185,834.22621071,0.00018603,2]
[378615306,1754926327112,5000.0,0.00018603,2]
[378615307,1754926343859,4165.77378929,0.00018603,2]
[378615308,1754926343884,834.22621071,0.00018603,2]
[378615310,1754926358231,-22029.45393127,0.00018638,2]
[378615311,1754926358257,-1265.66804555,0.00018638,2]
[378615312,1754926358282,-1265.66804555,0.00018638,2]
[378615313,1754926358305,-1265.66804555,0.00018638,2]
[378615314,1754926358329,-1265.66804555,0.00018638,2]
[378615315,1754926358352,-1265.66804555,0.00018638,2]
[378615316,1754926358376,-1265.66804555,0.00018638,2]
[378615317,1754926358401,-1265.66804555,0.00018638,2]
[378615318,1754926358426,-1265.66804555,0.00018638,2]
[378615319,1754926358450,-1265.66804555,0.00018638,2]
[378615320,1754926358475,-1265.66804555,0.00018638,2]
[378615321,1754926358498,-1265.66804555,0.00018638,2]
[378615322,1754926358522,-1388.01595663,0.00018638,2]
[378615323,1754926358546,-1388.01595663,0.00018638,2]
[378615324,1754926358570,-1388.01595663,0.00018638,2]
[378615325,1754926358594,-1388.01595663,0.00018638,2]
[378615326,1754926358618,-1388.01595663,0.00018638,2]
[378615327,1754926359345,2229.11778453,0.00018603,2]
[378615328,1754926359372,458.03371304,0.00018603,2]
[378615334,1754926423074,8707.74007625,0.0001854,2]
[378615335,1754926423101,10000.0,0.0001854,2]
[378615336,1754926423128,10000.0,0.0001854,2]
[378615337,1754926423153,10000.0,0.0001854,2]
[378615338,1754926423179,10000.0,0.0001854,2]
[378615339,1754926423205,10000.0,0.0001854,2]
[378615340,1754926423230,10000.0,0.0001854,2]
[378615341,1754926423261,10000.0,0.0001854,2]
[378615342,1754926423287,10000.0,0.0001854,2]
[378615343,1754926423313,10000.0,0.0001854,2]
[378615344,1754926423339,10000.0,0.0001854,2]
[378615345,1754926423364,10000.0,0.0001854,2]
[378615346,1754926423398,251292.25992375,0.0001854,2]
[378615348,1754926435337,5000.0,0.00018602,2]
[378615349,1754926472723,1126.53763865,0.0003,120]
[378615364,1754926788522,728.89278,0.00013699,2]
[378615366,1754926829065,242.20353363,0.00018501,2]
[378615369,1754926882529,250.0,0.0001782,2]
[378615372,1754926923624,647.168688,0.00018073,2]
[378615373,1754926968462,24900.0,0.00018073,2]
[378615377,1754926988088,19326.4387039,0.00018073,2]
[378615379,1754927057756,3076.1936714,0.00018074,2]
[378615381,1754927143387,10000.0,0.0001804,2]
[378615390,1754927208427,51554.0,0.000185,2]
[378615393,1754927295112,2600.0,0.0001478,2]
[378615394,1754927298791,2600.0,0.0001615,2]
[378615395,1754927302369,2600.0,0.0001752,2]
[378615397,1754927388556,188.97680858,0.00018367,2]
[378615398,1754927390930,187.00885502,0.00018367,2]
[378615411,1754927432539,-250.71300834,0.00018616,2]
[378615441,1754927438289,-2349.28699166,0.00018616,2]
[378615442,1754927438299,-150.0,0.0001864,2]
[378615443,1754927438308,-2034.57098434,0.000189,2]
[378615444,1754927438320,-291.37493341,0.000189,2]
[378615445,1754927438330,-302.84859387,0.000189,2]
[378615446,1754927438339,-1200.0,0.00018986,2]
[378615447,1754927438349,-300.0,0.00018987,2]
[378615448,1754927438359,-300.0,0.00018987,2]
[378615449,1754927438368,-300.0,0.00018987,2]
[378615450,1754927438378,-16326.79127586,0.00018988,2]
[378615452,1754927438387,-1200.0,0.00018988,2]
[378615454,1754927438396,-151.0,0.00019067,2]
[378615456,1754927438406,-151.0,0.00019067,2]
[378615457,1754927438415,-291.51017463,0.00019067,2]
[378615458,1754927438425,-151.0,0.00019067,2]
[378615459,1754927438435,-151.0,0.00019067,2]
[378615461,1754927438444,-151.0,0.00019067,2]
[378615462,1754927438453,-151.0,0.00019067,2]
[378615463,1754927438462,-151.0,0.00019067,2]
[378615464,1754927438472,-3386.00785983,0.00019067,2]
[378615465,1754927438482,-151.0,0.00019067,2]
[378615466,1754927438492,-151.0,0.00019067,2]
[378615467,1754927438501,-151.0,0.00019067,2]
[378615468,1754927438511,-151.0,0.00019067,2]
[378615469,1754927438522,-151.0,0.00019067,2]
[378615470,1754927438531,-151.0,0.00019067,2]
[378615471,1754927438540,-151.0,0.00019067,2]
[378615472,1754927438550,-151.0,0.00019067,2]
[378615473,1754927438559,-151.0,0.00019067,2]
[378615474,1754927438569,-151.0,0.00019067,2]
[378615475,1754927438579,-151.0,0.00019067,2]
[378615476,1754927438588,-151.0,0.00019067,2]
[378615477,1754927438598,-151.0,0.00019067,2]
[378615478,1754927438608,-151.0,0.00019067,2]
[378615479,1754927438617,-151.0,0.00019067,2]
[378615480,1754927438627,-151.0,0.00019067,2]
[378615481,1754927438637,-151.0,0.00019067,2]
[378615482,1754927438646,-151.0,0.00019067,2]
[378615483,1754927438656,-151.0,0.00019067,2]
[378615484,1754927438665,-151.0,0.00019067,2]
[378615485,1754927438676,-238.68292228,0.00019073,2]
[378615486,1754927438686,-500.0,0.00019073,2]
[378615487,1754927438696,-500.8171718,0.00019073,2]
[378615488,1754927438707,-500.0,0.00019073,2]
[378615489,1754927438717,-211.28046456,0.00019073,2]
[378615490,1754927438729,-500.0,0.00019073,2]
[378615491,1754927438738,-500.0,0.00019073,2]
[378615492,1754927438748,-500.0,0.00019073,2]
[378615493,1754927438758,-500.0,0.00019073,2]
[378615494,1754927438767,-500.0,0.00019073,2]
[378615495,1754927438777,-500.0,0.00019073,2]
[378615496,1754927438788,-500.0,0.00019073,2]
[378615497,1754927438796,-500.0,0.00019073,2]
[378615498,1754927438804,-358.87746642,0.00019073,2]
[378615499,1754927438812,-500.0,0.00019073,2]
[378615500,1754927438820,-500.0,0.00019073,2]
[378615501,1754927438829,-500.68347371,0.00019073,2]
[378615502,1754927438839,-500.0,0.00019073,2]
[378615503,1754927438849,-500.0,0.00019073,2]
[378615504,1754927438858,-500.0,0.00019073,2]
[378615505,1754927438868,-500.0,0.00019073,2]
[378615506,1754927438878,-500.0,0.00019073,2]
[378615509,1754927439100,-500.0,0.00019073,2]
[378615510,1754927439119,-514.81854937,0.00019073,2]
[378615511,1754927439129,-500.0,0.00019073,2]
[378615512,1754927439139,-500.0,0.00019073,2]
[378615513,1754927439148,-500.0,0.00019073,2]
[378615514,1754927439158,-500.0,0.00019073,2]
[378615515,1754927439168,-500.0,0.00019073,2]
[378615516,1754927439178,-500.0,0.00019073,2]
[378615517,1754927439187,-500.0,0.00019073,2]
[378615518,1754927439197,-500.0,0.00019073,2]
[378615519,1754927439206,-6740.20306424,0.00019073,2]
[378615520,1754927439215,-497.65003805,0.00019074,2]
[378615521,1754927439227,-1147.84168771,0.00019074,2]
[378615522,1754927439237,-1147.84168771,0.00019074,2]
[378615523,1754927439247,-1147.84168771,0.00019074,2]
[378615524,1754927439256,-1147.84168771,0.00019074,2]
[378615525,1754927439266,-1147.84168771,0.00019074,2]
[378615526,1754927439275,-1147.84168771,0.00019074,2]
[378615527,1754927439285,-1147.84168771,0.00019074,2]
[378615528,1754927439294,-1147.84168771,0.00019074,2]
[378615529,1754927439303,-1147.84168771,0.00019074,2]
[378615530,1754927439312,-1147.84168771,0.00019074,2]
[378615531,1754927439322,-1147.84168771,0.00019074,2]
[378615532,1754927439331,-1147.84168771,0.00019074,2]
[378615533,1754927439340,-500.0,0.00019077,2]
[378615534,1754927439350,-370000.0,0.00019078,2]
[378615535,1754927439369,-302.90913941,0.00019089,2]
[378615536,1754927439381,-500.0,0.00019173,2]
[378615537,1754927439391,-500.0,0.00019173,2]
[378615538,1754927439402,-500.0,0.00019173,2]
[378615539,1754927439412,-500.0,0.00019173,2]
[378615540,1754927439423,-500.0,0.00019173,2]
[378615541,1754927439433,-338.07546911,0.00019173,2]
[378615542,1754927439444,-393.4232562,0.00019173,2]
[378615543,1754927439455,-500.0,0.00019173,2]
[378615544,1754927439466,-500.0,0.00019173,2]
[378615545,1754927439478,-500.0,0.00019173,2]
[378615546,1754927439488,-583.93173583,0.00019173,2]
[378615547,1754927439499,-500.0,0.00019173,2]
[378615548,1754927439510,-500.0,0.00019173,2]
[378615549,1754927439521,-500.0,0.00019173,2]
[378615550,1754927439532,-500.0,0.00019173,2]
[378615551,1754927439542,-500.0,0.00019173,2]
[378615552,1754927439554,-500.0,0.00019173,2]
[378615553,1754927439564,-500.0,0.00019173,2]
[378615554,1754927439576,-500.0,0.00019173,2]
[378615555,1754927439586,-500.0,0.00019173,2]
[378615556,1754927439597,-500.0,0.00019173,2]
[378615557,1754927439607,-157.46260862,0.00019173,2]
[378615558,1754927439618,-500.0,0.00019173,2]
[378615559,1754927439629,-340.52011149,0.00019173,2]
[378615561,1754927439640,-596.74407758,0.00019173,2]
[378615562,1754927439650,-500.0,0.00019173,2]
[378615564,1754927439660,-160.46192181,0.00019173,2]
[378615565,1754927439671,-158.46371259,0.00019173,2]
[378615566,1754927439681,-500.0,0.00019173,2]
[378615567,1754927439691,-158.46471794,0.00019173,2]
[378615568,1754927439701,-248.49009127,0.00019173,2]
[378615569,1754927439715,-341.62190171,0.00019173,2]
[378615570,1754927439726,-158.12880838,0.00019173,2]
[378615571,1754927439736,-157.96167722,0.00019173,2]
[378615572,1754927439746,-500.0,0.00019173,2]
[378615573,1754927439758,-158.04855828,0.00019173,2]
[378615574,1754927439768,-158.46577498,0.00019173,2]
[378615575,1754927439779,-160.06680905,0.00019173,2]
[378615576,1754927439790,-349.65332276,0.00019173,2]
[378615577,1754927439801,-500.0,0.00019173,2]
[378615578,1754927439811,-260.55026,0.00019173,2]
[378615579,1754927439821,-160.06638324,0.00019173,2]
[378615580,1754927439831,-160.04917295,0.00019173,2]
[378615581,1754927439841,-158.46444877,0.00019173,2]
[378615582,1754927439851,-158.46341349,0.00019173,2]
[378615583,1754927439861,-168.46954688,0.00019173,2]